[Event "Late-Titled-Tuesday-Blitz-August-29-2023"]
[Site "Chess.com"]
[Date "2023.08.29"]
[Round "9"]
[White "Cluke86"]
[Black "rikchessmx"]
[Result "1-0"]
[WhiteElo "2294"]
[BlackElo "2427"]
[TimeControl "180+1"]
[EndTime "15:41:39 PDT"]
[Termination "Cluke86 won by resignation"]

1. e4 {[%clk 0:03:00.9]} 1... e5 {[%clk 0:02:59.7]} 2. Nf3 {[%clk 0:03:00.4]}
2... Nc6 {[%clk 0:02:58.1]} 3. Bc4 {[%clk 0:02:59.9]} 3... Bc5 {[%clk
0:02:57.4]} 4. O-O {[%clk 0:02:59.8]} 4... d6 {[%clk 0:02:56.8]} 5. c3 {[%clk
0:02:50.9]} 5... Qf6 {[%clk 0:02:54.5]} 6. d3 {[%clk 0:02:33.5]} 6... h6 {[%clk
0:02:53.6]} 7. Be3 {[%clk 0:02:31.9]} 7... Nge7 {[%clk 0:02:51.9]} 8. d4 {[%clk
0:02:28.1]} 8... Bb6 {[%clk 0:02:51.3]} 9. a4 {[%clk 0:02:13.5]} 9... a5 {[%clk
0:02:40.2]} 10. d5 {[%clk 0:02:11.2]} 10... Nb8 {[%clk 0:02:40.1]} 11. Bb5+
{[%clk 0:02:10.2]} 11... Nd7 {[%clk 0:02:37.5]} 12. Bxb6 {[%clk 0:02:08.8]}
12... cxb6 {[%clk 0:02:38.4]} 13. Nbd2 {[%clk 0:02:06.7]} 13... O-O {[%clk
0:02:38.2]} 14. Nc4 {[%clk 0:02:02.5]} 14... Ng6 {[%clk 0:02:23.9]} 15. Nfd2
{[%clk 0:02:01.4]} 15... Nc5 {[%clk 0:02:17.2]} 16. Qf3 {[%clk 0:01:57.1]} 16...
Nf4 {[%clk 0:02:16.2]} 17. b4 {[%clk 0:01:50.5]} 17... axb4 {[%clk 0:02:09.1]}
18. cxb4 {[%clk 0:01:51.4]} 18... Nd7 {[%clk 0:02:08.8]} 19. Bxd7 {[%clk
0:01:46.3]} 19... Bxd7 {[%clk 0:02:08.4]} 20. Nxb6 {[%clk 0:01:46.1]} 20... Rad8
{[%clk 0:01:56.6]} 21. Nxd7 {[%clk 0:01:45.8]} 21... Rxd7 {[%clk 0:01:56.8]} 22.
Rfc1 {[%clk 0:01:45.7]} 22... Qg5 {[%clk 0:01:55.8]} 23. Nc4 {[%clk 0:01:40]}
23... f5 {[%clk 0:01:52.9]} 24. g3 {[%clk 0:01:13.3]} 24... Nh3+ {[%clk
0:01:49.5]} 25. Kg2 {[%clk 0:00:51.4]} 25... fxe4 {[%clk 0:01:49.8]} 26. Qxe4
{[%clk 0:00:40.5]} 26... Nxf2 {[%clk 0:01:49.1]} 27. Qh4 {[%clk 0:00:32.5]}
27... Qg6 {[%clk 0:01:45.5]} 28. Nb6 {[%clk 0:00:25.4]} 28... Rdf7 {[%clk
0:01:45.1]} 29. Rf1 {[%clk 0:00:22.8]} 29... Qc2 {[%clk 0:01:39]} 30. Kg1 {[%clk
0:00:12.4]} 30... Qe2 {[%clk 0:01:35.5]} 31. Rae1 {[%clk 0:00:11.3]} 31... Qd2
{[%clk 0:01:33.9]} 32. Nc4 {[%clk 0:00:07]} 32... Qc2 {[%clk 0:01:29.5]} 33. Ne3
{[%clk 0:00:07.1]} 33... Qb2 {[%clk 0:01:25.6]} 34. Ng4 {[%clk 0:00:06.8]} 34...
Nxg4 {[%clk 0:01:19.8]} 35. Rxf7 {[%clk 0:00:07.7]} 35... Qd4+ {[%clk
0:01:19.2]} 36. Kg2 {[%clk 0:00:04.9]} 36... Qf2+ {[%clk 0:01:18.9]} 37. Rxf2
{[%clk 0:00:04]} 37... Rxf2+ {[%clk 0:01:17.8]} 38. Kg1 {[%clk 0:00:04.2]} 38...
Rxh2 {[%clk 0:01:16.8]} 39. Qxg4 {[%clk 0:00:04.1]} 39... h5 {[%clk 0:01:15.4]}
40. Qe6+ {[%clk 0:00:05]} 40... Kh7 {[%clk 0:01:15.4]} 41. Kxh2 {[%clk
0:00:05.8]} 1-0

[Event "Late-Titled-Tuesday-Blitz-August-29-2023"]
[Site "Chess.com"]
[Date "2023.08.29"]
[Round "9"]
[White "NigelDwarf"]
[Black "JoakimVonAnd"]
[Result "0-1"]
[WhiteElo "2550"]
[BlackElo "2737"]
[TimeControl "180+1"]
[EndTime "15:41:43 PDT"]
[Termination "JoakimVonAnd won by resignation"]

1. Nf3 {[%clk 0:02:56]} 1... d5 {[%clk 0:02:58.8]} 2. c4 {[%clk 0:02:55.9]} 2...
e6 {[%clk 0:02:57.4]} 3. e3 {[%clk 0:02:55.3]} 3... Nf6 {[%clk 0:02:56.8]} 4. b3
{[%clk 0:02:55.5]} 4... c5 {[%clk 0:02:56.2]} 5. Bb2 {[%clk 0:02:53.2]} 5... Nc6
{[%clk 0:02:56.1]} 6. cxd5 {[%clk 0:02:51.2]} 6... exd5 {[%clk 0:02:57]} 7. d4
{[%clk 0:02:49.4]} 7... cxd4 {[%clk 0:02:57]} 8. Nxd4 {[%clk 0:02:48.2]} 8...
Bb4+ {[%clk 0:02:57.4]} 9. Bc3 {[%clk 0:02:36.7]} 9... Qa5 {[%clk 0:02:49]} 10.
Bxb4 {[%clk 0:02:22.1]} 10... Qxb4+ {[%clk 0:02:48.6]} 11. Qd2 {[%clk
0:02:19.9]} 11... Nxd4 {[%clk 0:02:48.8]} 12. exd4 {[%clk 0:02:18.9]} 12... Qe7+
{[%clk 0:02:43.5]} 13. Be2 {[%clk 0:02:16.2]} 13... Bg4 {[%clk 0:02:40.6]} 14.
O-O {[%clk 0:02:08.4]} 14... Bxe2 {[%clk 0:02:38.6]} 15. Re1 {[%clk 0:02:08.1]}
15... O-O {[%clk 0:02:38.1]} 16. Rxe2 {[%clk 0:02:07.2]} 16... Ne4 {[%clk
0:02:35.1]} 17. Nc3 {[%clk 0:01:44.7]} 17... Rfd8 {[%clk 0:02:19.8]} 18. Qe1
{[%clk 0:01:33.6]} 18... Qf6 {[%clk 0:02:06.4]} 19. Nxe4 {[%clk 0:01:28.8]}
19... dxe4 {[%clk 0:02:07.3]} 20. Rxe4 {[%clk 0:01:29.2]} 20... h6 {[%clk
0:02:07.9]} 21. Rd1 {[%clk 0:01:28.1]} 21... Rd5 {[%clk 0:02:03.1]} 22. Re8+
{[%clk 0:01:16.9]} 22... Rxe8 {[%clk 0:02:01.9]} 23. Qxe8+ {[%clk 0:01:17.8]}
23... Kh7 {[%clk 0:02:01.9]} 24. Qe4+ {[%clk 0:01:07.1]} 24... Qf5 {[%clk
0:02:02]} 25. Qxf5+ {[%clk 0:01:00.7]} 25... Rxf5 {[%clk 0:02:02.9]} 26. d5
{[%clk 0:01:01.1]} 26... Re5 {[%clk 0:02:03.5]} 27. d6 {[%clk 0:00:51.1]} 27...
Re8 {[%clk 0:02:03.2]} 28. f4 {[%clk 0:00:47.4]} 28... Kg6 {[%clk 0:02:03.2]}
29. g4 {[%clk 0:00:38.4]} 29... Kf6 {[%clk 0:02:02.9]} 30. Kf2 {[%clk
0:00:27.5]} 30... Rd8 {[%clk 0:02:02.7]} 31. Ke3 {[%clk 0:00:20.2]} 31... Ke6
{[%clk 0:02:02.8]} 32. Ke4 {[%clk 0:00:20.1]} 32... Rxd6 {[%clk 0:02:00.7]} 33.
f5+ {[%clk 0:00:18.1]} 33... Kd7 {[%clk 0:02:00.8]} 34. Rxd6+ {[%clk 0:00:18.1]}
34... Kxd6 {[%clk 0:02:01.7]} 35. h4 {[%clk 0:00:18.7]} 35... f6 {[%clk
0:01:55.4]} 36. Kd4 {[%clk 0:00:18.8]} 36... Kc6 {[%clk 0:01:54.4]} 37. Kc4
{[%clk 0:00:15.9]} 37... b5+ {[%clk 0:01:52.1]} 38. Kd4 {[%clk 0:00:15.7]} 38...
Kd6 {[%clk 0:01:46.9]} 39. a4 {[%clk 0:00:13]} 39... a6 {[%clk 0:01:44]} 40. a5
{[%clk 0:00:12.2]} 40... Kc6 {[%clk 0:01:43.6]} 41. b4 {[%clk 0:00:12.7]} 41...
Kd6 {[%clk 0:01:44.2]} 42. Ke4 {[%clk 0:00:12.3]} 42... Kc6 {[%clk 0:01:44.5]}
43. Kf4 {[%clk 0:00:11]} 43... Kd5 {[%clk 0:01:44.7]} 44. g5 {[%clk 0:00:11.6]}
44... hxg5+ {[%clk 0:01:43.5]} 45. hxg5 {[%clk 0:00:11.8]} 45... Kd4 {[%clk
0:01:39.7]} 46. g6 {[%clk 0:00:10.6]} 46... Kd5 {[%clk 0:01:38.7]} 47. Kf3
{[%clk 0:00:07.4]} 47... Ke5 {[%clk 0:01:35.6]} 48. Kg4 {[%clk 0:00:08.3]} 48...
Ke4 {[%clk 0:01:35.4]} 0-1

[Event "Late-Titled-Tuesday-Blitz-August-29-2023"]
[Site "Chess.com"]
[Date "2023.08.29"]
[Round "9"]
[White "Quattroporte300"]
[Black "Zq1"]
[Result "0-1"]
[WhiteElo "2404"]
[BlackElo "2526"]
[TimeControl "180+1"]
[EndTime "15:41:54 PDT"]
[Termination "Zq1 won by resignation"]

1. e4 {[%clk 0:02:57.8]} 1... c5 {[%clk 0:02:59.2]} 2. Nf3 {[%clk 0:02:56.4]}
2... d6 {[%clk 0:02:59.1]} 3. d4 {[%clk 0:02:55.6]} 3... cxd4 {[%clk 0:02:59.1]}
4. Nxd4 {[%clk 0:02:56.5]} 4... Nf6 {[%clk 0:02:58.8]} 5. Nc3 {[%clk 0:02:56.8]}
5... Nc6 {[%clk 0:02:58.9]} 6. f3 {[%clk 0:02:55.9]} 6... Nxd4 {[%clk
0:02:57.8]} 7. Qxd4 {[%clk 0:02:54.5]} 7... g6 {[%clk 0:02:58.4]} 8. Be3 {[%clk
0:02:54]} 8... Bg7 {[%clk 0:02:58.4]} 9. Qd2 {[%clk 0:02:54.3]} 9... O-O {[%clk
0:02:57.7]} 10. O-O-O {[%clk 0:02:54.5]} 10... Be6 {[%clk 0:02:57.7]} 11. Kb1
{[%clk 0:02:53.4]} 11... Rc8 {[%clk 0:02:56.8]} 12. g4 {[%clk 0:02:53.4]} 12...
Rxc3 {[%clk 0:02:53.1]} 13. bxc3 {[%clk 0:02:31.2]} 13... Qc7 {[%clk 0:02:14.6]}
14. g5 {[%clk 0:02:21.1]} 14... Nd7 {[%clk 0:01:49.5]} 15. Bd4 {[%clk
0:02:21.3]} 15... Ne5 {[%clk 0:01:49.5]} 16. Be2 {[%clk 0:02:14.7]} 16... Rc8
{[%clk 0:01:40.8]} 17. Qe3 {[%clk 0:01:49.4]} 17... Bc4 {[%clk 0:01:26.6]} 18.
Bxe5 {[%clk 0:01:38.3]} 18... Bxe5 {[%clk 0:01:23]} 19. Bxc4 {[%clk 0:01:37.6]}
19... Qxc4 {[%clk 0:01:19.1]} 20. Rd3 {[%clk 0:01:37.2]} 20... Bxc3 {[%clk
0:01:04.2]} 21. Rxc3 {[%clk 0:01:30]} 21... Qxc3 {[%clk 0:01:04.3]} 22. Qxc3
{[%clk 0:01:30.2]} 22... Rxc3 {[%clk 0:01:04.1]} 23. Rf1 {[%clk 0:01:30.5]}
23... Re3 {[%clk 0:01:03.2]} 24. Rf2 {[%clk 0:01:23.6]} 24... Re1+ {[%clk
0:01:02.6]} 25. Kb2 {[%clk 0:01:24]} 25... Rg1 {[%clk 0:01:00.7]} 26. h4 {[%clk
0:01:20.5]} 26... Rh1 {[%clk 0:01:00.6]} 27. c4 {[%clk 0:01:15.5]} 27... Rxh4
{[%clk 0:00:59.7]} 28. Kc3 {[%clk 0:01:15.2]} 28... Rh1 {[%clk 0:00:57.1]} 29.
Rb2 {[%clk 0:01:14.7]} 29... b6 {[%clk 0:00:55.4]} 30. Kd4 {[%clk 0:01:11.6]}
30... Rg1 {[%clk 0:00:49.7]} 31. f4 {[%clk 0:01:08]} 31... Rg3 {[%clk
0:00:45.6]} 32. e5 {[%clk 0:00:57.7]} 32... dxe5+ {[%clk 0:00:43.4]} 33. Kxe5
{[%clk 0:00:58]} 33... Kg7 {[%clk 0:00:43.2]} 34. Re2 {[%clk 0:00:49.5]} 34...
Rd3 {[%clk 0:00:41.7]} 35. Ke4 {[%clk 0:00:46.5]} 35... Rd6 {[%clk 0:00:41.4]}
36. Rc2 {[%clk 0:00:41.3]} 36... f6 {[%clk 0:00:37.2]} 37. c5 {[%clk 0:00:37.8]}
37... Rc6 {[%clk 0:00:34.5]} 38. Kd5 {[%clk 0:00:36.7]} 38... Rxc5+ {[%clk
0:00:34.3]} 39. Rxc5 {[%clk 0:00:36.6]} 39... bxc5 {[%clk 0:00:34.6]} 40. Kxc5
{[%clk 0:00:32.6]} 40... fxg5 {[%clk 0:00:34.5]} 41. fxg5 {[%clk 0:00:32.8]}
41... h5 {[%clk 0:00:34.6]} 0-1

[Event "Late-Titled-Tuesday-Blitz-August-29-2023"]
[Site "Chess.com"]
[Date "2023.08.29"]
[Round "9"]
[White "WindWhistler11"]
[Black "azikom"]
[Result "0-1"]
[WhiteElo "2484"]
[BlackElo "2682"]
[TimeControl "180+1"]
[EndTime "15:41:58 PDT"]
[Termination "azikom won by resignation"]

1. Nf3 {[%clk 0:03:00.9]} 1... c5 {[%clk 0:02:59.6]} 2. g3 {[%clk 0:02:59.5]}
2... g6 {[%clk 0:02:59.2]} 3. d4 {[%clk 0:02:58]} 3... Bg7 {[%clk 0:03:00.1]} 4.
dxc5 {[%clk 0:02:57.8]} 4... Qa5+ {[%clk 0:02:59.7]} 5. Bd2 {[%clk 0:02:56.6]}
5... Qxc5 {[%clk 0:02:59.6]} 6. Bc3 {[%clk 0:02:57.2]} 6... Nf6 {[%clk
0:02:59.6]} 7. Bg2 {[%clk 0:02:56.9]} 7... O-O {[%clk 0:02:57.3]} 8. O-O {[%clk
0:02:54.2]} 8... d6 {[%clk 0:02:57]} 9. Nbd2 {[%clk 0:02:39.4]} 9... Qh5 {[%clk
0:02:55.9]} 10. h4 {[%clk 0:02:33]} 10... Nc6 {[%clk 0:02:53.1]} 11. e3 {[%clk
0:02:21.4]} 11... Bg4 {[%clk 0:02:52.7]} 12. Qe1 {[%clk 0:02:19.6]} 12... Rac8
{[%clk 0:02:46.7]} 13. Nh2 {[%clk 0:02:18.8]} 13... Bd7 {[%clk 0:02:43.1]} 14.
Bf3 {[%clk 0:02:16.4]} 14... Qb5 {[%clk 0:02:40.4]} 15. Nb3 {[%clk 0:02:13.4]}
15... Bh3 {[%clk 0:02:34.5]} 16. Bg2 {[%clk 0:02:07.2]} 16... Bxg2 {[%clk
0:02:33.9]} 17. Kxg2 {[%clk 0:02:07.2]} 17... Ne5 {[%clk 0:02:32.3]} 18. Rd1
{[%clk 0:02:00.4]} 18... Qc6+ {[%clk 0:02:31.3]} 19. Kg1 {[%clk 0:01:55.3]}
19... Ne4 {[%clk 0:02:30.5]} 20. Bxe5 {[%clk 0:01:54]} 20... Bxe5 {[%clk
0:02:29.9]} 21. c3 {[%clk 0:01:51.8]} 21... b5 {[%clk 0:02:28.8]} 22. Qe2 {[%clk
0:01:46.4]} 22... h5 {[%clk 0:02:23.8]} 23. Nd4 {[%clk 0:01:44.8]} 23... Qb7
{[%clk 0:02:17.7]} 24. Nhf3 {[%clk 0:01:33.5]} 24... b4 {[%clk 0:02:07.5]} 25.
cxb4 {[%clk 0:01:23.4]} 25... Qxb4 {[%clk 0:02:06.2]} 26. Nxe5 {[%clk
0:01:23.8]} 26... dxe5 {[%clk 0:02:06.4]} 27. Nf3 {[%clk 0:01:24.1]} 27... f6
{[%clk 0:02:02.2]} 28. a3 {[%clk 0:01:18.7]} 28... Qb7 {[%clk 0:01:58.5]} 29.
Rd3 {[%clk 0:01:05.7]} 29... Nd6 {[%clk 0:01:55.3]} 30. Qd1 {[%clk 0:00:57.8]}
30... Qxb2 {[%clk 0:01:53.1]} 31. Rb3 {[%clk 0:00:51.6]} 31... Qc2 {[%clk
0:01:52.1]} 32. Qd5+ {[%clk 0:00:51.8]} 32... Kg7 {[%clk 0:01:51.7]} 33. Rfb1
{[%clk 0:00:48.5]} 33... Qc4 {[%clk 0:01:42.5]} 34. Qa5 {[%clk 0:00:39.8]} 34...
Qc6 {[%clk 0:01:32.5]} 35. e4 {[%clk 0:00:26.3]} 35... Rc7 {[%clk 0:01:25.3]}
36. Nd2 {[%clk 0:00:20.5]} 36... Rfc8 {[%clk 0:01:23.5]} 37. Re1 {[%clk
0:00:17.6]} 37... Qc5 {[%clk 0:01:20.9]} 38. Qa4 {[%clk 0:00:15.2]} 38... Qc2
{[%clk 0:01:14.3]} 39. Qb4 {[%clk 0:00:08.2]} 39... Rb7 {[%clk 0:01:10.8]} 40.
Qa4 {[%clk 0:00:04]} 40... Qxd2 {[%clk 0:01:08.5]} 0-1

[Event "Late-Titled-Tuesday-Blitz-August-29-2023"]
[Site "Chess.com"]
[Date "2023.08.29"]
[Round "9"]
[White "Bala-Afiada"]
[Black "valemava"]
[Result "0-1"]
[WhiteElo "2000"]
[BlackElo "2295"]
[TimeControl "180+1"]
[EndTime "15:42:03 PDT"]
[Termination "valemava won by resignation"]

1. d4 {[%clk 0:03:00.9]} 1... c5 {[%clk 0:02:53.3]} 2. d5 {[%clk 0:03:00.9]}
2... d6 {[%clk 0:02:52.3]} 3. c4 {[%clk 0:03:01.4]} 3... b5 {[%clk 0:02:52.3]}
4. cxb5 {[%clk 0:03:01.7]} 4... a6 {[%clk 0:02:52.6]} 5. b6 {[%clk 0:03:02.3]}
5... Qxb6 {[%clk 0:02:51.6]} 6. Nc3 {[%clk 0:03:03]} 6... g6 {[%clk 0:02:51.9]}
7. Nf3 {[%clk 0:03:02]} 7... Bg7 {[%clk 0:02:51.8]} 8. Nd2 {[%clk 0:02:52.8]}
8... Nf6 {[%clk 0:02:44.3]} 9. Nc4 {[%clk 0:02:52.2]} 9... Qc7 {[%clk
0:02:42.3]} 10. e4 {[%clk 0:02:51.1]} 10... O-O {[%clk 0:02:41.4]} 11. a4 {[%clk
0:02:50.9]} 11... Nbd7 {[%clk 0:02:39.8]} 12. a5 {[%clk 0:02:51.1]} 12... Rb8
{[%clk 0:02:39.8]} 13. Ra3 {[%clk 0:02:13.8]} 13... Rb4 {[%clk 0:02:39]} 14. Rb3
{[%clk 0:02:09.7]} 14... Qb8 {[%clk 0:02:28.6]} 15. Rxb4 {[%clk 0:02:06.6]}
15... cxb4 {[%clk 0:02:28.3]} 16. Na4 {[%clk 0:02:03.1]} 16... Nxe4 {[%clk
0:02:27.3]} 17. Nab6 {[%clk 0:02:01]} 17... Nxb6 {[%clk 0:02:26.8]} 18. Nxb6
{[%clk 0:01:59.2]} 18... Nc5 {[%clk 0:02:12.9]} 19. Be2 {[%clk 0:01:48.8]} 19...
Qc7 {[%clk 0:02:04.8]} 20. O-O {[%clk 0:01:47.6]} 20... h5 {[%clk 0:02:00.5]}
21. Bxh5 {[%clk 0:01:39.6]} 21... gxh5 {[%clk 0:01:58.9]} 22. Qxh5 {[%clk
0:01:40.5]} 22... Ne4 {[%clk 0:01:52.3]} 23. Bh6 {[%clk 0:01:28.3]} 23... Bxh6
{[%clk 0:01:38.1]} 24. Qxh6 {[%clk 0:01:26.1]} 24... Bf5 {[%clk 0:01:32.9]} 25.
Rc1 {[%clk 0:00:55.3]} 25... Qb7 {[%clk 0:01:29.8]} 26. f3 {[%clk 0:00:50.4]}
26... Nf6 {[%clk 0:01:26.8]} 27. Qg5+ {[%clk 0:00:31.5]} 27... Bg6 {[%clk
0:01:26.1]} 28. h4 {[%clk 0:00:31.6]} 28... Nh7 {[%clk 0:01:25.9]} 29. Qg4
{[%clk 0:00:28.1]} 29... Kh8 {[%clk 0:01:18.1]} 30. h5 {[%clk 0:00:27.8]} 30...
Nf6 {[%clk 0:01:17.7]} 31. Qg5 {[%clk 0:00:19.7]} 31... Bxh5 {[%clk 0:01:16.7]}
32. Qh6+ {[%clk 0:00:18.4]} 32... Kg8 {[%clk 0:01:15.5]} 33. Rc4 {[%clk
0:00:17.8]} 33... Bg6 {[%clk 0:01:14.1]} 34. Rh4 {[%clk 0:00:17.3]} 34... Nh7
{[%clk 0:01:13.9]} 35. Rg4 {[%clk 0:00:12.7]} 35... Kh8 {[%clk 0:01:09.1]} 36.
Rxg6 {[%clk 0:00:10.6]} 36... fxg6 {[%clk 0:01:08.7]} 37. Qxg6 {[%clk
0:00:10.5]} 37... Qc7 {[%clk 0:01:04]} 38. Qe6 {[%clk 0:00:09.7]} 38... Qc1+
{[%clk 0:01:03.5]} 39. Kh2 {[%clk 0:00:10.3]} 39... Qf4+ {[%clk 0:01:02.6]} 40.
Kg1 {[%clk 0:00:10]} 40... Qf6 {[%clk 0:00:59.6]} 41. Qd7 {[%clk 0:00:10.3]}
41... Rg8 {[%clk 0:00:58.1]} 42. Nc8 {[%clk 0:00:09.7]} 42... Qxf3 {[%clk
0:00:56.9]} 0-1

[Event "Late-Titled-Tuesday-Blitz-August-29-2023"]
[Site "Chess.com"]
[Date "2023.08.29"]
[Round "9"]
[White "ZuraTqebuchava"]
[Black "DampFalcon"]
[Result "1-0"]
[WhiteElo "2186"]
[BlackElo "2351"]
[TimeControl "180+1"]
[EndTime "15:42:04 PDT"]
[Termination "ZuraTqebuchava won by checkmate"]

1. e4 {[%clk 0:02:58.8]} 1... c5 {[%clk 0:02:54.1]} 2. Nf3 {[%clk 0:02:58.2]}
2... g6 {[%clk 0:02:50.5]} 3. c3 {[%clk 0:02:54.1]} 3... d5 {[%clk 0:02:49.1]}
4. Bb5+ {[%clk 0:02:53]} 4... Nc6 {[%clk 0:02:29.9]} 5. Bxc6+ {[%clk 0:02:52.4]}
5... bxc6 {[%clk 0:02:30.1]} 6. d3 {[%clk 0:02:52.4]} 6... Bg7 {[%clk 0:01:46]}
7. O-O {[%clk 0:02:48.7]} 7... Nf6 {[%clk 0:01:44.3]} 8. Qe2 {[%clk 0:02:39.9]}
8... O-O {[%clk 0:01:35.1]} 9. h3 {[%clk 0:02:31.4]} 9... Ba6 {[%clk 0:01:29.8]}
10. e5 {[%clk 0:02:24]} 10... Nd7 {[%clk 0:01:21.5]} 11. e6 {[%clk 0:02:17.4]}
11... fxe6 {[%clk 0:01:21.3]} 12. Qxe6+ {[%clk 0:02:16.9]} 12... Kh8 {[%clk
0:01:20.6]} 13. Ng5 {[%clk 0:02:06.7]} 13... Bxd3 {[%clk 0:01:14.4]} 14. Rd1
{[%clk 0:01:58]} 14... Rf6 {[%clk 0:01:04.6]} 15. Qxf6 {[%clk 0:01:42.3]} 15...
exf6 {[%clk 0:00:48.9]} 16. Nf7+ {[%clk 0:01:41.2]} 16... Kg8 {[%clk 0:00:49.6]}
17. Nxd8 {[%clk 0:01:41.2]} 17... Bxb1 {[%clk 0:00:49.9]} 18. Nxc6 {[%clk
0:01:24.2]} 18... Be4 {[%clk 0:00:34.7]} 19. Ne7+ {[%clk 0:01:19.1]} 19... Kf7
{[%clk 0:00:33.6]} 20. Nxd5 {[%clk 0:01:19.5]} 20... Ne5 {[%clk 0:00:32.5]} 21.
Be3 {[%clk 0:00:48]} 21... Nc4 {[%clk 0:00:25.4]} 22. b3 {[%clk 0:00:41.6]}
22... Nxe3 {[%clk 0:00:18.2]} 23. Nxe3 {[%clk 0:00:41.2]} 23... f5 {[%clk
0:00:18.4]} 24. Rd7+ {[%clk 0:00:40.1]} 24... Kg8 {[%clk 0:00:18.3]} 25. Rad1
{[%clk 0:00:38.2]} 25... Bxc3 {[%clk 0:00:16.6]} 26. Rd8+ {[%clk 0:00:34.6]}
26... Rxd8 {[%clk 0:00:13.3]} 27. Rxd8+ {[%clk 0:00:35.5]} 27... Kf7 {[%clk
0:00:12.8]} 28. Rd7+ {[%clk 0:00:35.6]} 28... Ke6 {[%clk 0:00:13.2]} 29. Rxa7
{[%clk 0:00:34.8]} 29... f4 {[%clk 0:00:13.3]} 30. Nc4 {[%clk 0:00:33.8]} 30...
h5 {[%clk 0:00:10.8]} 31. Ra6+ {[%clk 0:00:30.3]} 31... Kd5 {[%clk 0:00:09.4]}
32. Rd6# {[%clk 0:00:28]} 1-0

[Event "Late-Titled-Tuesday-Blitz-August-29-2023"]
[Site "Chess.com"]
[Date "2023.08.29"]
[Round "9"]
[White "jefferyx"]
[Black "Durarbayli"]
[Result "1-0"]
[WhiteElo "3023"]
[BlackElo "2897"]
[TimeControl "180+1"]
[EndTime "15:42:13 PDT"]
[Termination "jefferyx won by resignation"]

1. e4 {[%clk 0:03:00.9]} 1... c5 {[%clk 0:02:59.3]} 2. Nf3 {[%clk 0:03:01]} 2...
d6 {[%clk 0:02:59.3]} 3. Nc3 {[%clk 0:03:01.6]} 3... Nf6 {[%clk 0:02:58.5]} 4.
d4 {[%clk 0:03:02.1]} 4... cxd4 {[%clk 0:02:59.3]} 5. Qxd4 {[%clk 0:03:02.6]}
5... Nc6 {[%clk 0:02:55.5]} 6. Qd3 {[%clk 0:03:02.9]} 6... g6 {[%clk 0:02:53.5]}
7. Nd5 {[%clk 0:03:03.2]} 7... Bg7 {[%clk 0:02:52.6]} 8. c3 {[%clk 0:03:03.5]}
8... Nd7 {[%clk 0:02:52.2]} 9. Be2 {[%clk 0:02:45.3]} 9... Rb8 {[%clk
0:02:45.3]} 10. O-O {[%clk 0:02:45.2]} 10... b5 {[%clk 0:02:45.3]} 11. Rd1
{[%clk 0:02:41.2]} 11... O-O {[%clk 0:02:40.3]} 12. Bg5 {[%clk 0:02:35.5]} 12...
Re8 {[%clk 0:02:40.4]} 13. Qe3 {[%clk 0:02:34.2]} 13... a5 {[%clk 0:02:33]} 14.
Rac1 {[%clk 0:02:32.7]} 14... a4 {[%clk 0:02:26.9]} 15. b4 {[%clk 0:02:20.9]}
15... axb3 {[%clk 0:02:14.6]} 16. axb3 {[%clk 0:02:21.8]} 16... Nc5 {[%clk
0:02:10]} 17. b4 {[%clk 0:02:18.7]} 17... Ne6 {[%clk 0:02:08.4]} 18. Bh4 {[%clk
0:02:15]} 18... Bd7 {[%clk 0:02:05.1]} 19. h3 {[%clk 0:02:02.7]} 19... Rb7
{[%clk 0:01:54.1]} 20. Bg3 {[%clk 0:01:52.8]} 20... Qb8 {[%clk 0:01:50.5]} 21.
Ra1 {[%clk 0:01:25.5]} 21... Nc7 {[%clk 0:01:32.2]} 22. Bf1 {[%clk 0:01:14.9]}
22... Nxd5 {[%clk 0:01:21.8]} 23. exd5 {[%clk 0:01:15]} 23... Ne5 {[%clk
0:01:22.5]} 24. Nxe5 {[%clk 0:00:54.3]} 24... Bxe5 {[%clk 0:01:23.4]} 25. Bxe5
{[%clk 0:00:54.7]} 25... dxe5 {[%clk 0:01:24.3]} 26. Ra6 {[%clk 0:00:54.6]}
26... Rc8 {[%clk 0:01:10.1]} 27. d6 {[%clk 0:00:52.6]} 27... exd6 {[%clk
0:01:09.8]} 28. Raxd6 {[%clk 0:00:52.6]} 28... Be6 {[%clk 0:00:48.5]} 29. Qxe5
{[%clk 0:00:52.7]} 29... Rd7 {[%clk 0:00:48.1]} 30. Bxb5 {[%clk 0:00:43.6]}
30... Rxd6 {[%clk 0:00:47]} 31. Rxd6 {[%clk 0:00:44.5]} 31... Rxc3 {[%clk
0:00:40.7]} 32. Qxc3 {[%clk 0:00:45.4]} 32... Qxd6 {[%clk 0:00:40.5]} 33. Be2
{[%clk 0:00:38.9]} 33... h5 {[%clk 0:00:36.1]} 34. b5 {[%clk 0:00:39.1]} 34...
Qb6 {[%clk 0:00:34.5]} 35. Qe5 {[%clk 0:00:31]} 35... Kf8 {[%clk 0:00:31.6]} 36.
Bf3 {[%clk 0:00:31]} 36... Ke7 {[%clk 0:00:27.6]} 37. Bc6 {[%clk 0:00:29.8]}
37... Qd8 {[%clk 0:00:28.2]} 38. Qg5+ {[%clk 0:00:27.4]} 38... f6 {[%clk
0:00:24.5]} 39. Qxg6 {[%clk 0:00:27.8]} 39... Qd1+ {[%clk 0:00:19.4]} 40. Kh2
{[%clk 0:00:28.2]} 40... h4 {[%clk 0:00:18.6]} 41. Qh7+ {[%clk 0:00:28]} 1-0